fUSD/lending_fUSD_20250804
["ID","MTS","AMOUNT","RATE_DAILY","PERIOD"]
[377218427,1754299842738,-849.3163911,0.00045234,2]
[377218428,1754299842749,-150.0,0.00045243,2]
[377218429,1754299842758,-768.41737339,0.00045283,14]
[377218430,1754299842768,-150.0,0.00045379,2]
[377218431,1754299842777,-2821.29,0.000454,14]
[377218432,1754299842787,-150.0,0.00045423,2]
[377218433,1754299842797,-150.0,0.00045431,2]
[377218434,1754299842807,-150.0,0.00045434,2]
[377218435,1754299842818,-150.0,0.00045458,2]
[377218436,1754299842828,-865.59667554,0.000455,120]
[377218437,1754299842837,-979.93954772,0.000455,120]
[377218438,1754299842847,-1042.0,0.000455,120]
[377218439,1754299842857,-150.0,0.00045505,2]
[377218440,1754299842868,-150.0,0.00045515,2]
[377218441,1754299842879,-1000.0,0.00045516,14]
[377218442,1754299842888,-151.63025342,0.00045516,74]
[377218443,1754299842897,-150.0,0.00045556,2]
[377218444,1754299842907,-150.0,0.0004562,2]
[377218445,1754299842917,-511.0,0.00045633,12]
[377218446,1754299842927,-150.0,0.00045636,2]
[377218447,1754299842939,-849.3163911,0.00045638,2]
[377218448,1754299842951,-150.0,0.00045649,2]
[377218449,1754299842964,-150.0,0.00045669,2]
[377218450,1754299842974,-150.0,0.00045682,2]
[377218451,1754299842984,-170.0,0.00045685,90]
[377218452,1754299842998,-150.0,0.00045696,2]
[377218453,1754299843008,-152.0,0.000457,120]
[377218454,1754299843018,-150.0,0.00045767,14]
[377218455,1754299843027,-150.0,0.00045778,2]
[377218456,1754299843037,-849.3163911,0.00045852,2]
[377218457,1754299843047,-150.0,0.00045857,2]
[377218458,1754299843056,-457.2201239,0.0004586,2]
[377218459,1754299843065,-150.0,0.00045861,2]
[377218460,1754299843074,-1314.16142,0.0004588,30]
[377218461,1754299843083,-150.0,0.00045884,2]
[377218462,1754299843093,-150.94,0.0004589,2]
[377218463,1754299843105,-1952.45126,0.0004589,2]
[377218464,1754299843114,-150.0,0.00045892,2]
[377218465,1754299843125,-150.0,0.00045897,2]
[377218466,1754299843135,-150.0,0.00045898,2]
[377218467,1754299843145,-1000.0,0.000459,2]
[377218468,1754299843154,-630.7462,0.000459,2]
[377218469,1754299843163,-2104.962,0.000459,2]
[377218470,1754299843172,-230.2184,0.000459,2]
[377218471,1754299843182,-5300.0,0.000459,16]
[377218472,1754299843192,-1331.32324905,0.000459,120]
[377218473,1754299843201,-10031.29768006,0.000459,30]
[377218474,1754299843210,-150.0,0.00045916,2]
[377218475,1754299843220,-1000.0,0.00045934,14]
[377218476,1754299843229,-150.0,0.0004594,2]
[377218477,1754299843239,-150.0,0.00045946,2]
[377218478,1754299843249,-150.0,0.00045954,2]
[377218479,1754299843259,-200.02,0.00045973,120]
[377218480,1754299843268,-150.94,0.0004599,2]
[377218481,1754299843278,-150.94,0.0004599,2]
[377218482,1754299843287,-50000.0,0.00046,46]
[377218483,1754299843296,-50000.0,0.00046,56]
[377218484,1754299843305,-1000.0,0.00046,120]
[377218485,1754299843314,-1929.21757971,0.00046,120]
[377218486,1754299843323,-799.75991765,0.00046,120]
[377218487,1754299843332,-11267.62097481,0.00046,10]
[377218488,1754299843342,-1000.0,0.00046,30]
[377218489,1754299843351,-1000.0,0.00046,120]
[377218490,1754299843360,-999.999999,0.00046,120]
[377218491,1754299843370,-150.0,0.00046018,2]
[377218492,1754299843380,-150.0,0.00046036,2]
[377218493,1754299843389,-306.58,0.00046045,14]
[377218494,1754299843398,-150.0,0.00046063,2]
[377218495,1754299843409,-150.0,0.00046088,2]
[377218496,1754299843419,-150.0,0.00046109,2]
[377218497,1754299843428,-150.0,0.00046113,2]
[377218498,1754299843438,-150.0,0.00046117,14]
[377218499,1754299843447,-1000.0,0.00046155,2]
[377218500,1754299843456,-2500.0,0.00046155,2]
[377218501,1754299843466,-1000.0,0.00046175,14]
[377218502,1754299843476,-150.0,0.00046179,2]
[377218503,1754299843485,-150.0,0.00046192,2]
[377218504,1754299843495,-1179.29,0.000462,120]
[377218505,1754299843505,-1179.29,0.000462,120]
[377218506,1754299843515,-1179.29,0.000462,120]
[377218507,1754299843525,-1179.29,0.000462,120]
[377218508,1754299843535,-1179.29,0.000462,120]
[377218509,1754299843544,-1179.29,0.000462,120]
[377218510,1754299843555,-1179.29,0.000462,120]
[377218511,1754299843568,-1179.29,0.000462,120]
[377218512,1754299843578,-2398.95,0.000462,120]
[377218513,1754299843588,-258.15,0.000462,120]
[377218514,1754299843598,-150.0,0.00046204,2]
[377218515,1754299843607,-4000.0,0.00046219,8]
[377218516,1754299843617,-150.0,0.00046226,2]
[377218517,1754299843627,-500.0,0.00046228,2]
[377218518,1754299843636,-500.0,0.00046228,2]
[377218519,1754299843646,-500.0,0.00046228,2]
[377218520,1754299843655,-500.0,0.00046228,2]
[377218521,1754299843665,-551.22253752,0.00046228,2]
[377218522,1754299843675,-178.26094196,0.00046245,7]
[377218523,1754299843685,-160.0,0.00046245,3]
[377218524,1754299843695,-150.0,0.00046253,2]
[377218525,1754299843705,-300.0,0.00046254,30]
[377218526,1754299843716,-666.0,0.00046254,30]
[377218527,1754299843726,-189842.5105,0.00046255,2]
[377218528,1754299843737,-1000.0,0.00046258,14]
[377218529,1754299843747,-183.55,0.00046259,14]
[377218530,1754299843757,-150.0,0.00046264,12]
[377218531,1754299843767,-150.0,0.00046264,2]
[377218532,1754299843778,-849.3163913,0.00046268,2]
[377218533,1754299843788,-500.0,0.00046273,10]
[377218534,1754299843798,-150.0,0.00046291,2]
[377218535,1754299843808,-336.1393,0.00046293,120]
[377218536,1754299843818,-150.0,0.00046297,2]
[377218537,1754299843828,-1000.0,0.000463,7]
[377218538,1754299843838,-963.22546012,0.000463,30]
[377218539,1754299843848,-1179.29,0.000463,120]
[377218540,1754299843859,-1179.29,0.000463,120]
[377218541,1754299843869,-709.82,0.000463,120]
[377218542,1754299843879,-150.0,0.00046305,2]
[377218543,1754299843891,-1011.62402342,0.0004633,58]
[377218544,1754299843901,-150.0,0.00046334,14]
[377218545,1754299843911,-1000.0,0.00046342,2]
[377218546,1754299843921,-1094.8994,0.00046342,2]
[377218547,1754299843931,-1000.0,0.00046342,2]
[377218548,1754299843942,-1000.0,0.00046342,2]
[377218549,1754299843951,-1000.0,0.00046342,2]
[377218550,1754299843962,-1000.0,0.00046342,2]
[377218551,1754299843973,-1000.0,0.00046342,2]
[377218552,1754299843983,-1000.0,0.00046342,2]
[377218553,1754299843993,-1000.0,0.00046342,2]
[377218554,1754299844003,-1000.0,0.00046342,2]
[377218555,1754299844012,-1000.0,0.00046342,2]
[377218556,1754299844022,-1000.0,0.00046342,2]
[377218557,1754299844032,-1000.0,0.00046342,2]
[377218558,1754299844042,-1000.0,0.00046342,2]
[377218559,1754299844052,-1000.0,0.00046342,2]
[377218560,1754299844062,-1000.0,0.00046342,2]
[377218561,1754299844071,-150.0,0.00046345,2]
[377218562,1754299844082,-160.0,0.00046346,61]
[377218563,1754299844093,-200.4692385,0.00046346,61]
[377218564,1754299844103,-151.0,0.00046346,61]
[377218565,1754299844113,-151.0,0.00046346,61]
[377218566,1754299844123,-160.0,0.00046346,61]
[377218567,1754299844134,-160.0,0.00046346,61]
[377218568,1754299844144,-160.0,0.00046346,61]
[377218569,1754299844156,-160.0,0.00046346,61]
[377218570,1754299844166,-160.0,0.00046346,61]
[377218571,1754299844177,-160.0,0.00046346,61]
[377218572,1754299844187,-300.0,0.00046346,61]
[377218573,1754299844198,-160.0,0.00046346,61]
[377218574,1754299844209,-300.0,0.00046346,61]
[377218575,1754299844221,-160.0,0.00046346,61]
[377218576,1754299844230,-160.0,0.00046346,61]
[377218577,1754299844241,-300.0,0.00046346,61]
[377218578,1754299844251,-160.0,0.00046346,61]
[377218579,1754299844261,-300.0,0.00046346,61]
[377218580,1754299844271,-300.0,0.00046346,61]
[377218581,1754299844282,-3888.0,0.00046346,61]
[377218582,1754299844293,-4031.856,0.00046346,61]
[377218583,1754299844303,-300.0,0.00046346,61]
[377218584,1754299844313,-4181.034672,0.00046346,61]
[377218585,1754299844324,-300.0,0.00046346,61]
[377218586,1754299844334,-4335.73295486,0.00046346,61]
[377218587,1754299844345,-151.0,0.00046346,61]
[377218588,1754299844356,-4496.15507419,0.00046346,61]
[377218589,1754299844366,-156.587,0.00046346,61]
[377218590,1754299844376,-4662.51281194,0.00046346,61]
[377218591,1754299844385,-162.380719,0.00046346,61]
[377218592,1754299844396,-4835.02578598,0.00046346,61]
[377218593,1754299844407,-168.3888056,0.00046346,61]
[377218594,1754299844421,-5013.92174006,0.00046346,61]
[377218595,1754299844431,-174.61919141,0.00046346,61]
[377218596,1754299844441,-500.0,0.00046346,61]
[377218597,1754299844451,-181.08010149,0.00046346,61]
[377218598,1754299844463,-500.0,0.00046346,61]
[377218599,1754299844474,-5199.43684444,0.00046346,61]
[377218600,1754299844484,-500.0,0.00046346,61]
[377218601,1754299844494,-187.78006525,0.00046346,61]
[377218602,1754299844504,-500.0,0.00046346,61]
[377218603,1754299844513,-5391.81600769,0.00046346,61]
[377218604,1754299844523,-194.72792766,0.00046346,61]
[377218605,1754299844535,-500.0,0.00046346,61]
[377218606,1754299844545,-500.0,0.00046346,61]
[377218607,1754299844555,-5591.31319997,0.00046346,61]
[377218608,1754299844565,-500.0,0.00046346,61]
[377218609,1754299844575,-500.0,0.00046346,61]
[377218610,1754299844586,-202.6771522,0.00046346,61]
[377218611,1754299844596,-5798.19178837,0.00046346,61]
[377218612,1754299844606,-500.0,0.00046346,61]
[377218613,1754299844621,-500.0,0.00046346,61]
[377218614,1754299844631,-6012.72488454,0.00046346,61]
[377218615,1754299844641,-500.0,0.00046346,61]
[377218616,1754299844651,-151.0,0.00046346,61]
[377218617,1754299844660,-500.0,0.00046346,61]
[377218618,1754299844670,-6235.19570527,0.00046346,61]
[377218619,1754299844680,-500.0,0.00046346,61]
[377218620,1754299844690,-151.0,0.00046346,61]
[377218621,1754299844699,-500.0,0.00046346,61]
[377218622,1754299844709,-500.0,0.00046346,61]
[377218623,1754299844719,-6465.89794637,0.00046346,61]
[377218624,1754299844729,-151.0,0.00046346,61]
[377218625,1754299844738,-500.0,0.00046346,61]
[377218626,1754299844749,-6705.13617038,0.00046346,61]
[377218627,1754299844759,-500.0,0.00046346,61]
[377218628,1754299844769,-151.0,0.00046346,61]
[377218629,1754299844779,-500.0,0.00046346,61]
[377218630,1754299844789,-2537.50969488,0.00046346,61]
[377218631,1754299844799,-500.0,0.00046346,61]
[377218632,1754299844809,-500.0,0.00046346,61]
[377218633,1754299844819,-151.0,0.00046346,61]
[377218634,1754299844829,-500.0,0.00046346,61]
[377218635,1754299844838,-500.0,0.00046346,61]
[377218636,1754299844848,-151.0,0.00046346,61]
[377218637,1754299844858,-500.0,0.00046346,61]
[377218638,1754299844867,-500.0,0.00046346,61]
[377218639,1754299844877,-151.0,0.00046346,61]
[377218640,1754299844886,-500.0,0.00046346,61]
[377218641,1754299844896,-515.47910692,0.00046346,61]
[377218642,1754299844906,-151.0,0.00046346,61]
[377218643,1754299844917,-500.0,0.00046346,61]
[377218644,1754299844929,-500.0,0.00046346,61]
[377218645,1754299844939,-500.0,0.00046346,61]
[377218646,1754299844951,-151.0,0.00046346,61]
[377218647,1754299844962,-500.0,0.00046346,61]
[377218648,1754299844972,-500.0,0.00046346,61]
[377218649,1754299844983,-151.0,0.00046346,61]
[377218650,1754299844993,-500.0,0.00046346,61]
[377218651,1754299845004,-500.0,0.00046346,61]
[377218652,1754299845013,-500.0,0.00046346,61]
[377218653,1754299845023,-500.0,0.00046346,61]
[377218654,1754299845034,-362.76393225,0.00046346,61]
[377218655,1754299845045,-500.0,0.00046346,61]
[377218656,1754299845056,-151.0,0.00046346,61]
[377218657,1754299845066,-151.0,0.00046346,61]
[377218658,1754299845078,-151.0,0.00046346,61]
[377218659,1754299845088,-151.0,0.00046346,61]
[377218660,1754299845100,-151.0,0.00046346,61]
[377218661,1754299845111,-151.0,0.00046346,61]
[377218662,1754299845123,-151.0,0.00046346,61]
[377218663,1754299845135,-151.0,0.00046346,61]
[377218664,1754299845145,-151.0,0.00046346,61]
[377218665,1754299845156,-151.0,0.00046346,61]
[377218666,1754299845167,-300.0,0.00046346,61]
[377218667,1754299845178,-311.1,0.00046346,61]
[377218668,1754299845189,-322.6107,0.00046346,61]
[377218669,1754299845201,-334.5472959,0.00046346,61]
[377218670,1754299845211,-346.92554585,0.00046346,61]
[377218671,1754299845222,-359.76179104,0.00046346,61]
[377218672,1754299845231,-373.07297731,0.00046346,61]
[377218673,1754299845242,-386.87667747,0.00046346,61]
[377218674,1754299845252,-401.19111454,0.00046346,61]
[377218675,1754299845262,-416.03518578,0.00046346,61]
[377218676,1754299845272,-431.42848765,0.00046346,61]
[377218677,1754299845282,-356.63930435,0.00046346,61]
[377218678,1754299845293,-300.0,0.00046346,61]
[377218679,1754299845303,-300.0,0.00046346,61]
[377218680,1754299845314,-300.0,0.00046346,61]
[377218681,1754299845324,-300.0,0.00046346,61]
[377218682,1754299845335,-300.0,0.00046346,61]
[377218683,1754299845345,-300.0,0.00046346,61]
[377218684,1754299845355,-300.0,0.00046346,61]
[377218685,1754299845365,-300.0,0.00046346,61]
[377218686,1754299845375,-300.0,0.00046346,61]
[377218687,1754299845385,-151.0,0.00046346,61]
[377218688,1754299845395,-151.0,0.00046346,61]
[377218689,1754299845406,-151.0,0.00046346,61]
[377218691,1754299845419,-151.0,0.00046346,61]
[377218693,1754299845430,-151.0,0.00046346,61]
[377218695,1754299845440,-151.0,0.00046346,61]
[377218697,1754299845450,-171.2514499,0.00046346,61]
[377218699,1754299845460,-200.0,0.00046346,61]
[377218701,1754299845471,-207.4,0.00046346,61]
[377218703,1754299845482,-215.0738,0.00046346,61]
[377218705,1754299845492,-223.0315306,0.00046346,61]
[377218707,1754299845502,-231.28369723,0.00046346,61]
[377218710,1754299845513,-239.84119403,0.00046346,61]
[377218712,1754299845524,-248.71531821,0.00046346,61]
[377218714,1754299845534,-257.91778498,0.00046346,61]
[377218716,1754299845544,-267.46074303,0.00046346,61]
[377218718,1754299845554,-277.35679052,0.00046346,61]
[377218720,1754299845564,-287.61899177,0.00046346,61]
[377218722,1754299845575,-298.26089446,0.00046346,61]
[377218724,1754299845586,-309.29654756,0.00046346,61]
[377218726,1754299845596,-320.74051982,0.00046346,61]
[377218728,1754299845606,-332.60791905,0.00046346,61]
[377218730,1754299845617,-344.91441206,0.00046346,61]
[377218732,1754299845627,-357.6762453,0.00046346,61]
[377218734,1754299845637,-246.16747525,0.00046346,61]
[377218736,1754299845648,-151.0,0.00046346,61]
[377218738,1754299845658,-157.55548253,0.00046346,61]
[377218740,1754299845668,-151.0,0.00046346,61]
[377218741,1754299845678,-151.0,0.00046346,61]
[377218742,1754299845688,-151.0,0.00046346,61]
[377218743,1754299845698,-151.0,0.00046346,61]
[377218744,1754299845708,-151.0,0.00046346,61]
[377218745,1754299845718,-151.0,0.00046346,61]
[377218747,1754299846049,-151.0,0.00046346,61]
[377218748,1754299846060,-151.0,0.00046346,61]
[377218749,1754299846070,-151.0,0.00046346,61]
[377218750,1754299846080,-151.0,0.00046346,61]
[377218751,1754299846092,-168.74495425,0.00046346,61]
[377218752,1754299846102,-500.0,0.00046346,61]
[377218753,1754299846111,-500.0,0.00046346,61]
[377218754,1754299846122,-500.0,0.00046346,61]
[377218755,1754299846133,-500.0,0.00046346,61]
[377218756,1754299846143,-500.0,0.00046346,61]
[377218757,1754299846152,-500.0,0.00046346,61]
[377218758,1754299846163,-500.0,0.00046346,61]
[377218759,1754299846172,-500.0,0.00046346,61]
[377218760,1754299846182,-500.0,0.00046346,61]
[377218761,1754299846192,-500.0,0.00046346,61]
[377218762,1754299846201,-590.71309864,0.00046346,61]
[377218763,1754299846212,-500.0,0.00046346,61]
[377218764,1754299846227,-500.0,0.00046346,61]
[377218765,1754299846237,-600.0,0.00046346,61]
[377218766,1754299846247,-500.0,0.00046346,61]
[377218767,1754299846257,-500.0,0.00046346,61]
[377218768,1754299846268,-500.0,0.00046346,61]
[377218769,1754299846279,-600.0,0.00046346,61]
[377218770,1754299846290,-500.0,0.00046346,61]
[377218771,1754299846301,-500.0,0.00046346,61]
[377218772,1754299846310,-600.0,0.00046346,61]
[377218773,1754299846320,-500.0,0.00046346,61]
[377218774,1754299846330,-500.0,0.00046346,61]
[377218775,1754299846340,-600.0,0.00046346,61]
[377218776,1754299846350,-500.0,0.00046346,61]
[377218777,1754299846360,-500.0,0.00046346,61]
[377218778,1754299846370,-600.0,0.00046346,61]
[377218779,1754299846380,-500.0,0.00046346,61]
[377218780,1754299846389,-500.0,0.00046346,61]
[377218781,1754299846399,-600.0,0.00046346,61]
[377218782,1754299846410,-500.0,0.00046346,61]
[377218783,1754299846423,-500.0,0.00046346,61]
[377218784,1754299846433,-307.08230604,0.00046346,61]
[377218785,1754299846443,-500.0,0.00046346,61]
[377218786,1754299846453,-500.0,0.00046346,61]
[377218787,1754299846462,-500.0,0.00046346,61]
[377218788,1754299846472,-500.0,0.00046346,61]
[377218789,1754299846482,-500.0,0.00046346,61]
[377218790,1754299846492,-500.0,0.00046346,61]
[377218791,1754299846502,-500.0,0.00046346,61]
[377218792,1754299846512,-500.0,0.00046346,61]
[377218793,1754299846522,-500.0,0.00046346,61]
[377218794,1754299846533,-500.0,0.00046346,61]
[377218795,1754299846545,-418.77521514,0.00046346,61]
[377218796,1754299846555,-151.0,0.00046346,61]
[377218797,1754299846565,-151.0,0.00046346,61]
[377218798,1754299846575,-151.0,0.00046346,61]
[377218799,1754299846585,-151.0,0.00046346,61]
[377218800,1754299846595,-151.0,0.00046346,61]
[377218801,1754299846605,-151.0,0.00046346,61]
[377218802,1754299846615,-151.0,0.00046346,61]
[377218803,1754299846625,-151.0,0.00046346,61]
[377218804,1754299846635,-151.0,0.00046346,61]
[377218805,1754299846644,-151.0,0.00046346,61]
[377218806,1754299846654,-151.0,0.00046346,61]
[377218807,1754299846664,-500.0,0.00046346,61]
[377218808,1754299846674,-500.0,0.00046346,61]
[377218809,1754299846684,-500.0,0.00046346,61]
[377218810,1754299846693,-500.0,0.00046346,61]
[377218811,1754299846703,-500.0,0.00046346,61]
[377218812,1754299846713,-500.0,0.00046346,61]
[377218813,1754299846722,-500.0,0.00046346,61]
[377218814,1754299846732,-500.0,0.00046346,61]
[377218815,1754299846741,-500.0,0.00046346,61]
[377218816,1754299846751,-500.0,0.00046346,61]
[377218817,1754299846761,-500.0,0.00046346,61]
[377218818,1754299846770,-500.0,0.00046346,61]
[377218819,1754299846780,-500.0,0.00046346,61]
[377218820,1754299846790,-212.38697808,0.00046346,61]
[377218821,1754299846802,-300.0,0.00046346,61]
[377218822,1754299846814,-300.0,0.00046346,61]
[377218823,1754299846823,-300.0,0.00046346,61]
[377218824,1754299846833,-300.0,0.00046346,61]
[377218825,1754299846844,-300.0,0.00046346,61]
[377218826,1754299846854,-300.0,0.00046346,61]
[377218827,1754299846864,-300.0,0.00046346,61]
[377218828,1754299846877,-300.0,0.00046346,61]
[377218829,1754299846887,-300.0,0.00046346,61]
[377218830,1754299846898,-300.0,0.00046346,61]
[377218831,1754299846908,-300.0,0.00046346,61]
[377218832,1754299846918,-300.0,0.00046346,61]
[377218833,1754299846927,-300.0,0.00046346,61]
[377218834,1754299846937,-300.0,0.00046346,61]
[377218835,1754299846950,-300.0,0.00046346,61]
[377218836,1754299846960,-300.0,0.00046346,61]
[377218837,1754299846970,-300.0,0.00046346,61]
[377218838,1754299846980,-300.0,0.00046346,61]
[377218839,1754299846990,-300.0,0.00046346,61]
[377218840,1754299847000,-300.0,0.00046346,61]
[377218841,1754299847011,-500.0,0.00046346,30]
[377218842,1754299847021,-500.0,0.00046346,30]
[377218843,1754299847030,-500.0,0.00046346,30]
[377218844,1754299847040,-500.0,0.00046346,30]
[377218845,1754299847049,-500.0,0.00046346,30]
[377218846,1754299847059,-500.0,0.00046346,30]
[377218847,1754299847068,-500.0,0.00046346,30]
[377218848,1754299847079,-500.0,0.00046346,30]
[377218849,1754299847089,-500.0,0.00046346,30]
[377218850,1754299847099,-500.0,0.00046346,30]
[377218851,1754299847109,-500.0,0.00046346,30]
[377218852,1754299847120,-500.0,0.00046346,30]
[377218853,1754299847130,-500.0,0.00046346,30]
[377218854,1754299847140,-500.0,0.00046346,30]
[377218855,1754299847150,-500.0,0.00046346,30]
[377218856,1754299847160,-500.0,0.00046346,30]
[377218857,1754299847170,-500.0,0.00046346,30]
[377218858,1754299847179,-500.0,0.00046346,30]
[377218859,1754299847190,-500.0,0.00046346,30]
[377218860,1754299847200,-500.0,0.00046346,30]
[377218861,1754299847210,-500.0,0.00046346,30]
[377218862,1754299847219,-500.0,0.00046346,30]
[377218863,1754299847229,-500.0,0.00046346,30]
[377218864,1754299847240,-500.0,0.00046346,30]
[377218865,1754299847251,-500.0,0.00046346,30]
[377218866,1754299847261,-500.0,0.00046346,30]
[377218867,1754299847271,-500.0,0.00046346,30]
[377218868,1754299847281,-500.0,0.00046346,30]
[377218869,1754299847291,-500.0,0.00046346,30]
[377218870,1754299847301,-500.0,0.00046346,30]
[377218871,1754299847311,-500.0,0.00046346,30]
[377218872,1754299847321,-500.0,0.00046346,30]
[377218873,1754299847332,-500.0,0.00046346,30]
[377218874,1754299847342,-500.0,0.00046346,30]
[377218875,1754299847352,-500.0,0.00046346,30]
[377218876,1754299847362,-500.0,0.00046346,30]
[377218877,1754299847372,-500.0,0.00046346,30]
[377218878,1754299847382,-500.0,0.00046346,30]
[377218879,1754299847392,-500.0,0.00046346,30]
[377218880,1754299847403,-500.0,0.00046346,30]
[377218881,1754299847415,-500.0,0.00046346,30]
[377218882,1754299847425,-500.0,0.00046346,30]
[377218883,1754299847436,-500.0,0.00046346,30]
[377218884,1754299847446,-500.0,0.00046346,30]
[377218885,1754299847455,-500.0,0.00046346,30]
[377218886,1754299847466,-500.0,0.00046346,30]
[377218887,1754299847477,-500.0,0.00046346,30]
[377218888,1754299847487,-500.0,0.00046346,30]
[377218889,1754299847497,-500.0,0.00046346,30]
[377218890,1754299847508,-500.0,0.00046346,30]
[377218891,1754299847517,-500.0,0.00046346,30]
[377218892,1754299847528,-500.0,0.00046346,30]
[377218893,1754299847537,-500.0,0.00046346,30]
[377218894,1754299847547,-500.0,0.00046346,30]
[377218895,1754299847558,-500.0,0.00046346,30]
[377218896,1754299847567,-500.0,0.00046346,30]
[377218897,1754299847578,-500.0,0.00046346,30]
[377218898,1754299847588,-500.0,0.00046346,30]
[377218899,1754299847599,-500.0,0.00046346,30]
[377218900,1754299847609,-500.0,0.00046346,30]
[377218901,1754299847619,-500.0,0.00046346,30]
[377218902,1754299847630,-500.0,0.00046346,30]
[377218903,1754299847643,-500.0,0.00046346,30]
[377218904,1754299847655,-500.0,0.00046346,30]
[377218905,1754299847664,-500.0,0.00046346,30]
[377218906,1754299847675,-500.0,0.00046346,30]
[377218907,1754299847686,-1123.0,0.00046346,120]
[377218908,1754299847697,-500.0,0.00046346,30]
[377218909,1754299847707,-500.0,0.00046346,30]
[377218910,1754299847719,-500.0,0.00046346,30]
[377218911,1754299847729,-500.0,0.00046346,30]
[377218912,1754299847739,-500.0,0.00046346,30]
[377218913,1754299847750,-500.0,0.00046346,30]
[377218914,1754299847760,-282.0,0.00046346,30]
[377218915,1754299847770,-200.0,0.00046347,7]
[377218916,1754299847780,-500.0,0.00046364,120]
[377218917,1754299847790,-500.0,0.00046364,120]
[377218918,1754299847801,-500.0,0.00046364,120]
[377218919,1754299847811,-500.0,0.00046364,120]
[377218920,1754299847821,-500.0,0.00046364,120]
[377218921,1754299847831,-500.0,0.00046364,120]
[377218922,1754299847841,-500.0,0.00046364,120]
[377218923,1754299847851,-500.0,0.00046364,120]
[377218924,1754299847862,-500.0,0.00046364,120]
[377218925,1754299847872,-500.0,0.00046364,120]
[377218926,1754299847883,-500.0,0.00046364,120]
[377218927,1754299847893,-500.0,0.00046364,120]
[377218928,1754299847902,-500.0,0.00046364,120]
[377218929,1754299847912,-500.0,0.00046364,120]
[377218930,1754299847922,-500.0,0.00046364,120]
[377218931,1754299847932,-500.0,0.00046364,120]
[377218932,1754299847941,-500.0,0.00046364,120]
[377218933,1754299847952,-500.0,0.00046364,120]
[377218934,1754299847961,-500.0,0.00046364,120]
[377218935,1754299847971,-500.0,0.00046364,120]
[377218936,1754299847981,-500.0,0.00046364,120]
[377218937,1754299847991,-500.0,0.00046364,120]
[377218938,1754299848002,-336.00852996,0.00046364,120]
[377218939,1754299848011,-500.0,0.00046364,120]
[377218940,1754299848021,-88888.0,0.00046366,120]
[377218941,1754299848031,-5000.0,0.00046366,120]
[377218942,1754299848040,-500.73495009,0.00046373,10]
[377218943,1754299848050,-220.37995172,0.00046373,10]
[377218944,1754299848060,-150.0,0.00046374,2]
[377218945,1754299848069,-1114.98260274,0.00046375,2]
[377218946,1754299848079,-150.0,0.00046376,2]
[377218947,1754299848089,-282.92,0.00046378,14]
[377218948,1754299848099,-221.86,0.00046379,14]
[377218949,1754299848109,-173.75485395,0.0004639,23]
[377218950,1754299848119,-920.58635482,0.0004639,120]
[377218951,1754299848128,-151.0,0.00046393,14]
[377218952,1754299848138,-151.0,0.00046393,14]
[377218953,1754299848147,-151.0,0.00046393,14]